bitfinex/quotes_BTCUSD_20260311
["timestamp","ask_amount","ask_price","bid_price","bid_amount"]
[1773241073499,0.1410624,70704.0,70671.0,0.09223447]
[1773241073705,0.08814663,70699.0,70672.0,0.00144]
[1773241073909,0.12618654,70700.0,70663.0,0.09223447]
[1773241073910,0.08814663,70697.0,70663.0,0.09223447]
[1773241074091,0.00022001,70678.0,70664.0,0.00144]
[1773241074301,0.00022001,70678.0,70665.0,0.00144]
[1773241074609,0.00022001,70678.0,70655.0,0.09223447]
[1773241074808,0.00022001,70678.0,70656.0,0.00144]
[1773241075184,0.00022001,70678.0,70658.0,0.09223447]
[1773241076891,0.00022001,70685.0,70658.0,0.09323447]
[1773241077228,0.00022001,70685.0,70660.0,0.09223447]
[1773241079393,0.00022001,70685.0,70662.0,0.09223447]
[1773241079571,0.00022001,70685.0,70664.0,0.09223447]
[1773241081228,0.00022001,70685.0,70664.0,0.09323447]
[1773241081407,0.00022001,70685.0,70666.0,0.09223447]
[1773241082583,0.08814663,70692.0,70664.0,0.001]
[1773241082788,0.08814663,70692.0,70665.0,0.00144]
[1773241083208,0.08814663,70692.0,70666.0,0.001]
[1773241083209,0.08814663,70690.0,70666.0,0.001]
[1773241083445,0.00144,70689.0,70669.0,0.09223447]
[1773241083800,0.048246,70743.0,70741.0,0.20777733]
[1773241083967,0.00070001,70763.0,70737.0,0.05252895]
[1773241084182,0.00070001,70763.0,70724.0,0.34428222]
[1773241084183,0.07088917,70753.0,70725.0,0.09223447]
[1773241084503,0.07088917,70753.0,70712.0,0.34428222]
[1773241084504,0.33274247,70739.0,70712.0,0.34428222]
[1773241084719,0.05252895,70720.0,70713.0,0.13926428]
[1773241084843,0.33274247,70739.0,70702.0,0.09223447]
[1773241084844,0.03977179,70737.0,70714.0,0.00144]
[1773241085048,0.03977179,70737.0,70715.0,0.00144]
[1773241085459,0.04313562,70735.0,70715.0,0.00144]
[1773241085701,0.07068536,70736.0,70715.0,0.00144]
[1773241085908,0.07068536,70736.0,70709.0,0.07071207]
[1773241086107,0.07068536,70736.0,70710.0,0.00144]
[1773241086470,0.04316463,70735.0,70705.0,0.07071539]
[1773241086771,0.04316463,70735.0,70706.0,0.00144]
[1773241087285,0.04316463,70735.0,70706.0,0.09367447]
[1773241087673,0.07068736,70734.0,70707.0,0.07071435]
[1773241088360,0.07068736,70734.0,70707.0,0.16294882]
[1773241088582,0.07068736,70734.0,70708.0,0.09223447]
[1773241088926,0.07068736,70734.0,70709.0,0.00144]
[1773241089720,0.07090737,70735.0,70709.0,0.00144]
[1773241090620,0.04168335,70729.0,70693.0,0.15252]
[1773241090798,0.12618654,70730.0,70694.0,0.00144]
[1773241090799,0.04168335,70719.0,70694.0,0.00144]
[1773241091673,0.07070335,70718.0,70694.0,0.00144]
[1773241092076,0.07070335,70718.0,70694.0,0.07216704]
[1773241092396,0.07070335,70718.0,70695.0,0.00144]
[1773241092887,0.07070335,70718.0,70693.0,0.09236127]
[1773241093082,0.07070335,70718.0,70696.0,0.00144]
[1773241093306,0.07070335,70719.0,70697.0,0.09223447]
[1773241093848,0.07069044,70731.0,70699.0,0.09223447]
[1773241094201,0.001,70718.0,70699.0,0.09223447]
[1773241094575,0.07069044,70731.0,70699.0,0.09223447]
[1773241096601,0.07069044,70731.0,70701.0,0.09223447]
[1773241097007,0.03732343,70730.0,70702.0,0.00144]
[1773241097648,0.03732343,70730.0,70702.0,0.09367447]
[1773241099303,0.07069236,70729.0,70703.0,0.09223447]
[1773241099502,0.07069236,70729.0,70694.0,0.07072691]
[1773241099503,0.03521218,70728.0,70684.0,0.16538913]
[1773241099707,0.03521218,70728.0,70694.0,0.00144]
[1773241100143,0.03521218,70728.0,70695.0,0.10652503]
[1773241100952,0.00144,70727.0,70695.0,0.10652503]
[1773241101456,0.07069535,70726.0,70696.0,0.07072535]
[1773241101659,0.03338916,70725.0,70697.0,0.10652503]
[1773241101856,0.03338916,70725.0,70697.0,0.10796503]
[1773241103864,0.07069735,70724.0,70697.0,0.17868851]
[1773241104213,0.07069735,70724.0,70698.0,0.10652503]
[1773241104424,0.10208682,70724.0,70698.0,0.10652503]
[1773241105157,0.07069735,70724.0,70698.0,0.10652503]
[1773241105735,0.07069735,70724.0,70699.0,0.07072235]
[1773241105938,0.07069735,70724.0,70700.0,0.10652503]
[1773241106137,0.07169735,70724.0,70700.0,0.10652503]
[1773241106340,0.001,70724.0,70700.0,0.10652503]
[1773241106579,0.07069735,70725.0,70700.0,0.10652503]
[1773241106806,0.07069535,70726.0,70701.0,0.13777626]
[1773241107065,0.07090703,70735.0,70703.0,0.10652503]
[1773241107361,0.07090703,70735.0,70705.0,0.10652503]
[1773241107582,0.07090703,70735.0,70707.0,0.10652503]
[1773241107583,0.00022001,70735.0,70707.0,0.10652503]
[1773241107786,0.07090689,70735.0,70709.0,0.10652503]
[1773241108044,0.07090689,70735.0,70713.0,0.10652503]
[1773241108331,0.07090689,70735.0,70712.0,0.35550142]
[1773241108332,0.07090689,70735.0,70715.0,0.10652503]
[1773241108467,0.07090689,70735.0,70716.0,0.13777626]
[1773241108719,0.07090689,70735.0,70712.0,0.35550142]
[1773241108720,0.07068736,70734.0,70718.0,0.10652503]
[1773241109348,0.07068736,70734.0,70719.0,0.13781735]
[1773241109630,0.07090677,70735.0,70720.0,0.10652503]
[1773241110726,0.00022001,70735.0,70722.0,0.10652503]
[1773241110929,0.00022001,70744.0,70724.0,0.10652503]
[1773241111076,0.00022001,70750.0,70725.0,0.1377866]
[1773241111276,0.00022001,70750.0,70727.0,0.10652503]
[1773241111485,0.00022001,70750.0,70726.0,0.1392266]
[1773241111486,0.00022001,70750.0,70729.0,0.10652503]
[1773241111687,0.00022001,70755.0,70731.0,0.10652503]
[1773241112058,0.00022001,70755.0,70733.0,0.10652503]
[1773241112260,0.07088936,70753.0,70735.0,0.10652503]
[1773241112461,0.07088936,70753.0,70736.0,0.13915297]
[1773241112705,0.00022001,70753.0,70738.0,0.10652503]
[1773241112920,0.07065817,70764.0,70734.0,0.07068736]
[1773241112921,0.00070001,70763.0,70742.0,0.10652503]
[1773241113090,0.07064943,70772.0,70744.0,0.10652503]
[1773241113406,0.07064943,70772.0,70746.0,0.10652503]
[1773241113407,0.07087044,70771.0,70746.0,0.10652503]
[1773241113609,0.07087149,70770.0,70747.0,0.244238]
[1773241113769,0.07087149,70770.0,70748.0,0.13771297]
[1773241114002,0.07087149,70770.0,70749.0,0.13771297]
[1773241114371,0.07087149,70770.0,70747.0,0.10652503]
[1773241114498,0.07087149,70770.0,70749.0,0.10652503]
[1773241114698,0.00022001,70770.0,70749.0,0.10652503]
[1773241115046,0.00022001,70770.0,70751.0,0.10652503]
[1773241115352,0.07087158,70770.0,70741.0,0.42618157]
[1773241115578,0.0531174,70767.0,70742.0,0.24570976]
[1773241115704,0.0531174,70767.0,70743.0,0.13774473]
[1773241115912,0.0531174,70767.0,70744.0,0.00144]
[1773241116110,0.07065539,70766.0,70742.0,0.10652503]
[1773241116320,0.12317277,70766.0,70743.0,0.13921515]
[1773241116514,0.12317277,70766.0,70743.0,0.00144]
[1773241116920,0.12317277,70766.0,70732.0,0.16538913]
[1773241116921,0.10114705,70765.0,70728.0,0.16538913]
[1773241117170,0.07065539,70766.0,70717.0,0.27191416]
[1773241117171,0.10114705,70749.0,70717.0,0.27191416]
[1773241117376,0.10114705,70747.0,70718.0,0.00144]
[1773241117571,0.10114705,70747.0,70715.0,0.59159681]
[1773241117572,0.10114705,70747.0,70719.0,0.00144]
[1773241118006,0.10114705,70747.0,70715.0,0.35550142]
[1773241118184,0.70148737,70746.0,70712.0,0.00048]
[1773241118341,0.10114705,70744.0,70708.0,0.00144]
[1773241118782,0.07067537,70746.0,70702.0,0.0002]
[1773241118783,0.19483117,70739.0,70702.0,0.0002]
[1773241118991,0.10258705,70738.0,70706.0,0.00144]
[1773241119775,0.10114705,70738.0,70707.0,0.10652503]
[1773241119983,0.00144,70737.0,70707.0,0.10652503]
[1773241120363,0.07212536,70736.0,70709.0,0.10138765]
[1773241120546,0.07068536,70736.0,70709.0,0.10138765]
[1773241120747,0.00144,70735.0,70709.0,0.10138765]
[1773241121049,0.09438051,70734.0,70710.0,0.00144]
[1773241121260,0.09438051,70734.0,70711.0,0.00144]
[1773241121892,0.09438051,70734.0,70710.0,0.00144]
[1773241122115,0.09438051,70734.0,70707.0,0.5]
[1773241122313,0.09438051,70732.0,70707.0,0.5]
[1773241122501,0.09438051,70732.0,70711.0,0.0002]
[1773241123463,0.09538051,70732.0,70711.0,0.0002]
[1773241124000,0.09438051,70732.0,70711.0,0.0002]
[1773241124217,0.07069036,70731.0,70711.0,0.0002]
[1773241124433,0.09438051,70730.0,70711.0,0.0002]
[1773241124635,0.00144,70729.0,70711.0,0.0002]
[1773241125602,0.00144,70729.0,70712.0,0.00144]
[1773241126229,0.09438051,70728.0,70711.0,0.0002]
[1773241126443,0.09438051,70726.0,70707.0,0.3324836]
[1773241127083,0.09438051,70726.0,70704.0,0.0002]
[1773241127256,0.09438051,70726.0,70700.0,0.01124]
[1773241127603,0.12618654,70720.0,70693.0,1e-08]
[1773241127812,0.09582051,70719.0,70693.0,1e-08]
[1773241128560,0.09438051,70717.0,70693.0,1e-08]
[1773241129099,0.00144,70716.0,70693.0,1e-08]
[1773241129292,0.09438051,70715.0,70693.0,1e-08]
[1773241129455,0.09438051,70715.0,70703.0,0.0002]
[1773241129655,0.09438051,70713.0,70703.0,0.0002]
[1773241130173,0.09582051,70713.0,70703.0,0.0002]
[1773241130345,0.06929541,70712.0,70703.0,0.0002]
[1773241132538,0.07071135,70710.0,70703.0,0.0002]
[1773241134998,0.07171135,70710.0,70703.0,0.0002]
[1773241135398,0.07071135,70710.0,70703.0,0.0002]
[1773241135637,0.07171135,70710.0,70703.0,0.0002]
[1773241136701,0.07171166,70710.0,70703.0,0.0002]
[1773241136896,0.16829832,70710.0,70696.0,0.00164]
[1773241138297,0.16729832,70710.0,70696.0,0.00164]
[1773241138504,0.07071166,70710.0,70696.0,0.00164]
[1773241138709,0.07070935,70712.0,70696.0,0.07236519]
[1773241138909,0.07070935,70712.0,70696.0,0.00164]
[1773241139115,0.07070935,70712.0,70696.0,0.0002]
[1773241139116,0.07071135,70710.0,70696.0,0.0002]
[1773241139479,0.16729801,70710.0,70696.0,0.0002]
[1773241139756,0.07070935,70712.0,70696.0,0.0709246]
[1773241139757,0.07070938,70712.0,70696.0,0.0709246]
[1773241139956,0.07070938,70712.0,70697.0,0.04380368]
[1773241140187,0.00022001,70716.0,70697.0,0.04380368]
[1773241140565,0.07092584,70716.0,70697.0,0.04380368]
[1773241140768,0.07091738,70724.0,70697.0,0.04380368]
[1773241141139,0.07091738,70724.0,70699.0,0.0421504]
[1773241141345,0.09658666,70723.0,70699.0,0.0421504]
[1773241142178,0.09658666,70723.0,70699.0,0.0431504]
[1773241142381,0.07091738,70724.0,70699.0,0.0441504]
[1773241142382,0.00022001,70724.0,70699.0,0.0441504]
[1773241142598,0.07091759,70724.0,70699.0,0.0431504]
[1773241143006,0.09658666,70723.0,70699.0,0.0431504]
[1773241143182,0.09658666,70721.0,70700.0,0.00144]
[1773241143714,0.09658666,70721.0,70701.0,0.00144]
[1773241144628,0.09658666,70721.0,70699.0,0.07172207]
[1773241144784,0.09658666,70721.0,70702.0,0.00144]
[1773241145188,0.07070135,70720.0,70703.0,0.07071835]
[1773241145389,0.16728725,70721.0,70703.0,0.07071835]
[1773241145736,0.07070059,70721.0,70703.0,0.07071835]
[1773241145981,0.0709206,70721.0,70703.0,0.07071835]
[1773241146915,0.0709206,70721.0,70703.0,0.10886079]
[1773241147910,0.0709206,70721.0,70703.0,0.07071835]
[1773241148502,0.0709206,70721.0,70704.0,0.03658908]
[1773241149258,0.0709206,70721.0,70705.0,0.07071635]
[1773241149651,0.00022001,70724.0,70705.0,0.07071635]
[1773241149844,0.07091284,70729.0,70706.0,0.03582277]
[1773241150176,0.07091284,70729.0,70705.0,0.07071635]
[1773241150177,0.09658666,70728.0,70705.0,0.07071635]
[1773241150399,0.09658666,70728.0,70707.0,0.03506602]
[1773241151802,0.09658666,70728.0,70704.0,0.07071653]
[1773241151803,0.09658666,70726.0,70704.0,0.07071653]
[1773241152011,0.09658666,70726.0,70705.0,0.00144]
[1773241152356,0.09658666,70724.0,70705.0,0.00144]
[1773241153303,0.09658666,70724.0,70705.0,0.00129075]
[1773241154068,0.07069835,70723.0,70705.0,0.00129075]
[1773241154387,0.09658666,70722.0,70706.0,0.00144]
[1773241155268,0.09658666,70722.0,70702.0,0.07071932]
[1773241155518,0.09658666,70722.0,70701.0,0.07091949]
[1773241155706,0.09658666,70722.0,70703.0,0.00144]
[1773241156549,0.16728701,70721.0,70703.0,0.10280661]
[1773241156954,0.07070035,70721.0,70703.0,0.03193974]
[1773241157183,0.09658666,70720.0,70703.0,0.03164126]
[1773241157388,0.09658666,70720.0,70701.0,0.0002]
[1773241157563,0.09658666,70720.0,70704.0,0.00129075]
[1773241158600,0.09658666,70718.0,70704.0,0.00129075]
[1773241159084,0.09658666,70718.0,70697.0,0.11048532]
[1773241159292,0.07070235,70719.0,70694.0,0.11048532]
[1773241159293,0.00144,70717.0,70694.0,0.11048532]
[1773241159501,0.09658666,70716.0,70693.0,0.0002]
[1773241159705,0.09658666,70716.0,70693.0,0.07236782]
[1773241159902,0.0806828,70714.0,70693.0,0.00164]
[1773241160927,0.0806828,70712.0,70693.0,0.00164]
[1773241162080,0.0806828,70712.0,70693.0,0.0002]
[1773241162410,0.0806828,70712.0,70685.0,0.07093624]
[1773241162411,0.0806828,70708.0,70672.0,0.11101799]
[1773241162616,0.0806828,70708.0,70666.0,0.16652699]
[1773241162617,0.12606719,70682.0,70644.0,0.27486476]
[1773241162782,0.12606719,70682.0,70641.0,0.34724318]
[1773241162783,0.0806828,70679.0,70654.0,0.34724318]
[1773241163991,0.0806828,70679.0,70641.0,0.37710023]
[1773241164204,0.0806828,70669.0,70646.0,0.00144]
[1773241164395,0.0806828,70669.0,70641.0,0.34724318]
[1773241164396,0.0806828,70667.0,70641.0,0.34724318]
[1773241164801,0.0806828,70665.0,70641.0,0.34724318]
[1773241165015,0.07926789,70665.0,70641.0,0.34868318]
[1773241166911,0.12606719,70660.0,70640.0,0.00141562]
[1773241167099,0.0821228,70659.0,70629.0,0.34724318]
[1773241167715,0.0821228,70659.0,70629.0,0.41803536]
[1773241167890,0.07075738,70664.0,70629.0,0.41803536]
[1773241167891,0.0806828,70657.0,70630.0,0.02860643]
[1773241168476,0.0806828,70657.0,70629.0,0.41947536]
[1773241168915,0.0806828,70655.0,70629.0,0.41947536]
[1773241169286,0.0806828,70655.0,70629.0,0.34724318]
[1773241169498,0.0806828,70655.0,70630.0,0.00144]
[1773241169901,0.0806828,70655.0,70628.0,0.00012]
[1773241170107,0.0806828,70653.0,70628.0,0.00012]
[1773241170838,0.0806828,70651.0,70626.0,0.00144]
[1773241170991,0.0806828,70651.0,70622.0,0.32880318]
[1773241171195,0.0806828,70651.0,70623.0,0.00144]
[1773241171793,0.0806828,70639.0,70599.0,0.34724318]
[1773241171989,0.0806828,70637.0,70599.0,0.34724318]
[1773241172284,0.0806828,70635.0,70599.0,0.34724318]
[1773241172445,0.0806828,70633.0,70599.0,0.34724318]
[1773241172647,0.0806828,70631.0,70599.0,0.34724318]
[1773241172844,0.0806828,70627.0,70600.0,0.07082152]
[1773241173047,0.0806828,70625.0,70600.0,0.07082152]
[1773241173268,0.0806828,70623.0,70600.0,0.07082152]
[1773241173470,0.14197091,70622.0,70600.0,0.07082152]
[1773241173669,0.06128811,70622.0,70600.0,0.07082152]
[1773241173868,0.14074441,70619.0,70587.0,0.07227457]
[1773241174087,0.0806828,70617.0,70587.0,0.07227457]
[1773241174322,0.03442486,70616.0,70587.0,0.07227457]
[1773241174509,0.0821228,70615.0,70588.0,0.02720665]
[1773241174704,0.0821228,70615.0,70587.0,0.07227457]
[1773241174705,0.0806828,70613.0,70587.0,0.07083457]
[1773241174911,0.0806828,70610.0,70586.0,0.08207533]
[1773241175112,0.0806828,70608.0,70586.0,0.0820751]
[1773241175321,0.12606719,70600.0,70557.0,1e-08]
[1773241175541,0.12606719,70600.0,70544.0,0.02676059]
[1773241175542,0.0806828,70583.0,70544.0,0.02676059]
[1773241175708,0.0806828,70583.0,70543.0,0.41812101]
[1773241175709,0.00144,70582.0,70551.0,0.02676059]
[1773241175908,0.00144,70581.0,70551.0,0.02676059]
[1773241176126,0.16988,70600.0,70551.0,0.02676059]
[1773241176127,2.43e-05,70580.0,70551.0,0.02676059]
[1773241176327,0.0014,70579.0,70551.0,0.02676059]
[1773241176910,0.01176401,70578.0,70552.0,0.07086971]
[1773241177311,0.0014,70577.0,70554.0,0.02642418]
[1773241177509,0.0014,70577.0,70550.0,0.1969369]
[1773241177510,0.21315285,70576.0,70532.0,0.34724318]
[1773241177704,0.21315285,70576.0,70535.0,0.02642418]
[1773241177705,0.0806828,70569.0,70535.0,0.02642418]
[1773241177953,0.09271742,70568.0,70535.0,0.02642418]
[1773241178311,0.09271742,70568.0,70534.0,0.002572]
[1773241178509,0.12606719,70560.0,70534.0,0.002572]
[1773241178716,0.09248197,70559.0,70551.0,0.001]
[1773241178921,0.09248197,70559.0,70534.0,0.07345932]
[1773241178922,0.0014,70558.0,70534.0,0.07345932]
[1773241179120,0.0806828,70556.0,70535.0,0.001]
[1773241179361,0.08240986,70557.0,70522.0,0.02895762]
[1773241179362,0.0806828,70554.0,70529.0,0.08213181]
[1773241179518,0.01340298,70553.0,70529.0,0.07479791]
[1773241179725,0.01329371,70553.0,70529.0,0.07479791]
[1773241180124,0.00144,70552.0,70534.0,0.001]
[1773241180929,0.00144,70552.0,70535.0,0.07088679]
[1773241181337,0.48998427,70665.0,70535.0,0.07088679]
[1773241181338,0.07653726,70574.0,70535.0,0.07088679]
[1773241181537,0.07653726,70569.0,70535.0,0.07088679]
[1773241181734,0.00144,70568.0,70535.0,0.07088679]
[1773241181977,0.07512016,70567.0,70535.0,0.07088679]
[1773241182628,0.00144,70566.0,70535.0,0.07088679]
[1773241182834,0.07653726,70573.0,70536.0,0.00144]
[1773241182998,0.07653726,70573.0,70538.0,0.07088377]
[1773241183192,0.07653726,70573.0,70520.0,7.5e-05]
[1773241183193,0.07653726,70549.0,70520.0,7.5e-05]
[1773241183396,0.00144,70548.0,70523.0,0.07089885]
[1773241183773,0.07653726,70549.0,70523.0,0.07089885]
[1773241184136,0.00144,70548.0,70523.0,0.07089885]
[1773241184291,0.07653726,70548.0,70523.0,0.07089885]
[1773241184492,0.00144,70547.0,70523.0,0.07089885]
[1773241184693,0.07653726,70548.0,70523.0,0.07089885]
[1773241184895,0.00144,70547.0,70523.0,0.07089885]
[1773241186118,0.07653726,70546.0,70535.0,0.0002]
[1773241187522,0.07087674,70545.0,70535.0,0.0002]
[1773241187845,0.07653726,70545.0,70535.0,0.0002]
[1773241188518,0.07653726,70554.0,70535.0,0.07108622]
[1773241188695,0.07653726,70552.0,70535.0,0.0002]
[1773241188896,0.00144,70551.0,70535.0,0.0002]
[1773241189257,0.00144,70550.0,70535.0,0.0002]
[1773241189468,0.07653726,70551.0,70535.0,0.0710867]
[1773241189694,0.00144,70549.0,70535.0,0.0710867]
[1773241189819,0.00144,70549.0,70535.0,0.0002]
[1773241190024,0.00144,70549.0,70535.0,0.07108671]
[1773241190220,0.07653726,70551.0,70535.0,0.07108671]
[1773241190435,0.00144,70550.0,70535.0,0.07108671]
[1773241190836,0.10555328,70557.0,70535.0,0.07108671]
[1773241190837,0.07624906,70578.0,70535.0,0.07108671]
[1773241191054,0.07624906,70576.0,70535.0,0.07108671]
[1773241191655,0.03511359,70578.0,70535.0,0.07108671]
[1773241191656,0.07084661,70575.0,70536.0,0.06726102]
[1773241192069,0.07768906,70574.0,70536.0,0.06726102]
[1773241192907,0.07624906,70574.0,70536.0,0.06726102]
[1773241193107,0.00144,70573.0,70541.0,0.0647152]
[1773241193312,0.00144,70572.0,70541.0,0.0647152]
[1773241193459,0.07624906,70584.0,70541.0,0.0647152]
[1773241193665,0.01124,70586.0,70543.0,0.0647152]
[1773241193863,0.00144,70585.0,70545.0,0.0647152]
[1773241194392,0.07624906,70584.0,70545.0,0.0647152]
[1773241194550,0.01124,70586.0,70545.0,0.0647152]
[1773241194760,0.00144,70585.0,70545.0,0.0647152]
[1773241194957,0.01124,70586.0,70544.0,0.00144]
[1773241194958,0.01124,70586.0,70550.0,0.12652814]
[1773241195177,0.00144,70587.0,70551.0,0.0641865]
[1773241195503,0.00144,70587.0,70553.0,0.0636441]
[1773241195801,0.00144,70588.0,70555.0,0.0636441]
[1773241196002,0.00144,70593.0,70562.0,0.0636441]
[1773241196216,0.00144,70595.0,70564.0,0.06320297]
[1773241196410,0.00144,70594.0,70564.0,0.06320297]
[1773241196611,0.00144,70593.0,70564.0,0.06320297]
[1773241197001,0.00144,70595.0,70564.0,0.06320297]
[1773241197204,0.07624906,70604.0,70564.0,0.06320297]
[1773241197411,0.00144,70608.0,70571.0,0.06266858]
[1773241197767,0.00048,70610.0,70573.0,0.06266858]
[1773241197917,0.00144,70607.0,70573.0,0.06266858]
[1773241198458,0.07768906,70607.0,70573.0,0.06266858]
[1773241198872,0.07624906,70607.0,70573.0,0.06266858]
[1773241199029,0.00144,70606.0,70573.0,0.06266858]
[1773241199567,0.00144,70606.0,70582.0,0.36229917]
[1773241199768,0.00144,70606.0,70585.0,0.06162366]
[1773241200116,0.00048,70610.0,70585.0,0.06162366]
[1773241200320,0.00141616,70614.0,70590.0,0.12652814]
[1773241200618,0.00144,70616.0,70591.0,0.06256065]
[1773241200834,0.13987546,70627.0,70591.0,0.06256065]
[1773241200964,0.0002334,70628.0,70591.0,0.06256065]
[1773241200965,0.00144,70622.0,70591.0,0.06256065]
[1773241201166,0.00144,70622.0,70584.0,0.07083758]
[1773241201167,0.07624906,70621.0,70592.0,0.00144]
[1773241201374,0.07624906,70619.0,70590.0,0.00144]
[1773241201574,0.07624906,70617.0,70590.0,0.00144]
[1773241201764,0.07624906,70615.0,70591.0,0.07083055]
[1773241202115,0.07224548,70616.0,70591.0,0.07083055]
[1773241202116,0.07768906,70614.0,70591.0,0.07083055]
[1773241202635,0.07768906,70614.0,70591.0,0.07183055]
[1773241202817,0.00144,70613.0,70591.0,0.07183055]
[1773241203045,0.00144,70612.0,70591.0,0.07183055]
[1773241203321,0.00144,70616.0,70592.0,0.0596334]
[1773241203495,0.001,70614.0,70592.0,0.0596334]
[1773241203699,0.00144,70616.0,70593.0,0.07082855]
[1773241203901,0.07624906,70626.0,70594.0,0.0596334]
[1773241204224,0.00144,70625.0,70594.0,0.0596334]
[1773241204441,0.07624906,70624.0,70594.0,0.0596334]
[1773241204649,0.07624906,70624.0,70593.0,0.07082855]
[1773241205073,0.00141616,70614.0,70593.0,0.06941168]
[1773241205511,0.00144,70613.0,70593.0,0.06941168]
[1773241205714,0.00144,70613.0,70593.0,0.07041168]
[1773241205939,0.07624906,70612.0,70593.0,0.07182855]
[1773241206119,0.07624906,70612.0,70593.0,0.07282855]
[1773241206313,0.07624906,70612.0,70593.0,0.07082855]
[1773241206559,0.00141616,70614.0,70593.0,0.07082855]
[1773241206560,0.00144,70611.0,70593.0,0.07082855]
[1773241206763,0.00141616,70614.0,70594.0,0.00144]
[1773241206951,0.00144,70613.0,70594.0,0.00144]
[1773241207711,0.00144,70613.0,70595.0,0.07082654]
[1773241208041,0.07101838,70624.0,70595.0,0.07082654]
[1773241208042,0.00144,70622.0,70596.0,0.05765176]
[1773241208436,0.00022001,70624.0,70596.0,0.05765176]
[1773241208807,0.07624906,70622.0,70595.0,0.07082654]
[1773241209008,0.07624906,70622.0,70596.0,0.00144]
[1773241209214,0.00144,70623.0,70597.0,0.05668883]
[1773241209410,0.00022001,70624.0,70597.0,0.05668883]
[1773241209822,0.07624906,70623.0,70598.0,0.07082353]
[1773241210581,0.00144,70622.0,70598.0,0.07082353]
[1773241210736,0.00144,70622.0,70598.0,0.12702734]
[1773241210942,0.00144,70622.0,70599.0,0.00144]
[1773241211139,0.00144,70623.0,70599.0,0.00144]
[1773241212079,0.00144,70623.0,70600.0,0.07082152]
[1773241212427,0.00022001,70624.0,70600.0,0.07082152]
[1773241212633,0.00022001,70624.0,70600.0,0.12606594]
[1773241213852,0.07624906,70634.0,70601.0,0.08322432]
[1773241214054,0.00144,70633.0,70603.0,0.08322432]
[1773241214839,0.00144,70632.0,70603.0,0.08322432]
[1773241215241,0.00144,70631.0,70603.0,0.08322432]
[1773241215646,0.00022001,70623.0,70603.0,0.08322432]
[1773241216050,0.00022001,70623.0,70605.0,0.08322432]
[1773241216259,0.00022001,70623.0,70606.0,0.08466432]
[1773241216647,0.00144,70630.0,70606.0,0.08466432]
[1773241217387,0.00022001,70631.0,70606.0,0.08466432]
[1773241218135,0.00144,70641.0,70610.0,0.12652814]
[1773241218333,0.08748906,70643.0,70611.0,0.08322432]
[1773241218633,1e-08,70638.0,70613.0,0.08322432]
[1773241218866,0.08395635,70655.0,70621.0,0.08322432]
[1773241219036,0.08395635,70655.0,70614.0,0.36229917]
[1773241219037,0.07624906,70654.0,70614.0,0.36229917]
[1773241219178,0.07624906,70654.0,70615.0,0.00144]
[1773241219379,0.07624906,70654.0,70616.0,0.00144]
[1773241219813,0.07624906,70654.0,70614.0,0.44552349]
[1773241220017,0.07624906,70654.0,70617.0,0.00144]
[1773241220363,0.07443545,70652.0,70618.0,0.07080347]
[1773241220715,0.07443545,70649.0,70618.0,0.07080347]
[1773241221247,0.07443545,70649.0,70618.0,0.07030347]
[1773241221468,0.0707684,70653.0,70616.0,0.07080494]
[1773241221469,0.00144,70648.0,70616.0,0.07080494]
[1773241221625,0.07443545,70639.0,70613.0,0.07080789]
[1773241221824,0.07443545,70637.0,70613.0,0.07080789]
[1773241222026,0.07443545,70637.0,70606.0,0.0708135]
[1773241222235,0.07078543,70636.0,70605.0,0.0708135]
[1773241222424,0.07443545,70635.0,70605.0,0.0708135]
[1773241223492,0.00144,70635.0,70616.0,0.0002]
[1773241223854,0.07443545,70634.0,70616.0,0.0002]
[1773241224276,0.07078844,70633.0,70617.0,0.07080448]
[1773241224456,0.07443545,70632.0,70617.0,0.07080448]
[1773241225642,0.07443545,70632.0,70616.0,0.07100503]
[1773241225888,0.07443545,70632.0,70616.0,0.0002]
[1773241226402,0.07443545,70630.0,70616.0,0.07100543]
[1773241226699,0.07077966,70642.0,70616.0,0.07100543]
[1773241226918,0.07443545,70641.0,70616.0,0.07100543]
[1773241227052,0.07587545,70641.0,70616.0,0.07100543]
[1773241227246,0.00144,70640.0,70616.0,0.07100543]
[1773241227448,0.07443545,70641.0,70617.0,0.06958504]
[1773241227684,0.33959518,70673.0,70617.0,0.06958504]
[1773241227685,0.14086592,70642.0,70617.0,0.06958504]
[1773241227999,0.34964906,70662.0,70617.0,0.06958504]
[1773241228000,0.07443545,70648.0,70617.0,0.06958504]
[1773241228147,0.14086592,70650.0,70617.0,0.06958504]
[1773241228369,0.00144,70649.0,70619.0,0.06958504]
[1773241228569,0.00144,70649.0,70621.0,0.06958504]
[1773241228774,0.07443545,70648.0,70620.0,0.00144]
[1773241229579,0.07443545,70648.0,70619.0,0.06958504]
[1773241229580,0.14086592,70648.0,70619.0,0.06958504]
[1773241229809,0.00144,70647.0,70622.0,0.06958504]
[1773241230381,0.07443545,70650.0,70624.0,0.06958504]
[1773241230587,0.00022001,70654.0,70624.0,0.06958504]
[1773241230588,0.00144,70649.0,70624.0,0.06958504]
[1773241230789,0.00144,70648.0,70624.0,0.06958504]
[1773241230989,0.00144,70648.0,70624.0,0.06943578]
[1773241231255,0.07443545,70647.0,70624.0,0.06943578]
[1773241231412,0.00144,70651.0,70624.0,0.06943578]
[1773241231582,0.07443545,70650.0,70624.0,0.06943578]
[1773241232432,0.00144,70649.0,70626.0,0.06958504]
[1773241232662,0.07443545,70647.0,70625.0,0.07079646]
[1773241234116,0.07098792,70654.0,70626.0,0.06928658]
[1773241234434,0.00144,70646.0,70626.0,0.06928658]
[1773241234653,0.00022001,70654.0,70628.0,0.06958504]
[1773241234861,0.00144,70653.0,70630.0,0.06958504]
[1773241235064,0.00022001,70654.0,70630.0,0.06958504]
[1773241235240,0.00022001,70654.0,70630.0,0.06943583]
[1773241235438,0.14093585,70660.0,70630.0,0.06943583]
[1773241235641,0.00048,70661.0,70630.0,0.06943583]
[1773241235848,0.07443545,70660.0,70630.0,0.06943583]
[1773241236027,0.07443545,70660.0,70631.0,0.00144]
[1773241236223,0.07443545,70660.0,70627.0,0.07079445]
[1773241236448,0.07443545,70660.0,70628.0,0.00144]
[1773241236843,0.07443545,70658.0,70629.0,0.07079245]
[1773241237053,0.07443545,70658.0,70630.0,0.06958504]
[1773241237446,0.07443545,70649.0,70617.0,0.07080448]
[1773241237649,0.2153713,70649.0,70618.0,0.06958504]
[1773241237849,0.00144,70648.0,70618.0,0.06958504]
[1773241238052,0.00144,70647.0,70618.0,0.06958504]
[1773241238253,0.07443545,70646.0,70618.0,0.06958504]
[1773241238972,0.00144,70645.0,70620.0,0.06958504]
[1773241239123,0.00144,70645.0,70622.0,0.06958504]
[1773241239724,0.07443545,70644.0,70621.0,0.00144]
[1773241239977,0.07489095,70644.0,70621.0,0.00144]
[1773241240290,0.07489095,70644.0,70622.0,0.00144]